{"text_format":"1","workbook":"xlsx","n_sheets":3,"sheets":["Sheet1","Sheet2","Sheet3"],"not_rendered":{"charts":0,"images":0,"macros":1,"external_links":0,"defined_names":1,"comments":0,"pivot_tables":0},"unopened":[],"bounds":{"document_bytes":16777216,"sheet_cells":100000,"rows_first":2000,"rows_last":500,"rows_between":2000,"halvings":0,"cell_chars":16384,"cell_head_chars":4096},"cells_cut":0,"cells_raw":0,"read":"whole","date_system":"1900"}

{"sheet":"Sheet1","index":0,"n_rows":22,"n_cols":26,"rows_kept":22,"cut":false,"hidden":false,"merged":[]}
[]
[]
[null,"Title: \nTitle\n \nJob Posting #:  \nS00...\n\nSupervisor:    \nSupervisor Name\n",null,"Required Education","Required Experience",null,null,null,null,null,null,null,null,null,null,null,"  APPLICATION  SCORE",null,"  INTERVIEW SCORE","  REFERENCE SCORE",null,"Veteran's Preference*","Former Foster Child",null,"  TOTAL SCORE"]
[null,null,"Assigned weights for scoring ð","ü","ü",5,5,4,4,3,3,2,2,1,1,1,null,null,5,5,null,"Y","Y"]
[null,"APPLICANTS",null,null,null,null,null,null,null,null,null,null,null,null,null,null,null,null,null,null,null,null,null,null,null,"Comments"]
[1,"Applicant # 1",null,null,null,null,null,null,null,null,null,null,null,null,null,null,{"$f":"SUM(D6:P6)","v":0},null,null,null,null,null,null,null,{"$f":"SUM(Q6,S6,T6)","v":0}]
[2,"Applicant # 2 ",null,null,null,null,null,null,null,null,null,null,null,null,null,null,0,null,null,null,null,null,null,null,0]
[3,"Applicant # 3",null,null,null,null,null,null,null,null,null,null,null,null,null,null,0,null,null,null,null,null,null,null,0]
[4,"Applicant # 4",null,null,null,null,null,null,null,null,null,null,null,null,null,null,0,null,null,null,null,null,null,null,0]
[5,"Applicant # 5",null,null,null,null,null,null,null,null,null,null,null,null,null,null,0,null,null,null,null,null,null,null,0]
[6,"Applicant # 6",null,null,null,null,null,null,null,null,null,null,null,null,null,null,0,null,null,null,null,null,null,null,0]
[7,"Applicant # 7",null,null,null,null,null,null,null,null,null,null,null,null,null,null,{"$f":"SUM(D12:P12)","v":0},null,null,null,null,null,null,null,{"$f":"SUM(Q12,S12,T12)","v":0}]
[8,"Applicant # 8",null,null,null,null,null,null,null,null,null,null,null,null,null,null,0,null,null,null,null,null,null,null,0]
[9,"Applicant # 9",null,null,null,null,null,null,null,null,null,null,null,null,null,null,0,null,null,null,null,null,null,null,0]
[10,"Applicant # 10",null,null,null,null,null,null,null,null,null,null,null,null,null,null,0,null,null,null,null,null,null,null,0]
[11,null,null,null,null,null,null,null,null,null,null,null,null,null,null,null,0,null,null,null,null,null,null,null,{"$f":"SUM(Q16,S16,T16)","v":0}]
[12,null,null,null,null,null,null,null,null,null,null,null,null,null,null,null,0,null,null,null,null,null,null,null,0]
[13,null,null,null,null,null,null,null,null,null,null,null,null,null,null,null,0,null,null,null,null,null,null,null,0]
[14,null,null,null,null,null,null,null,null,null,null,null,null,null,null,null,0,null,null,null,null,null,null,null,0]
[15,null,null,null,null,null,null,null,null,null,null,null,null,null,null,null,0,null,null,null,null,null,null,null,0]
[]
["   *If any qualified applicant self-identifies as elgible for Veteran's Preference, you are required to interview at least one (possibly more) of those applicants.  ",null,null,null,null,null,null,null,null,null,null,null,null,null,null,null,null,null,null,null,null,null,null,null,null,"Click here for details."]

{"sheet":"Sheet2","index":1,"n_rows":0,"n_cols":0,"rows_kept":0,"cut":false,"hidden":false,"merged":[]}

{"sheet":"Sheet3","index":2,"n_rows":0,"n_cols":0,"rows_kept":0,"cut":false,"hidden":false,"merged":[]}